bitfinex/quotes_SOLUSD_20220210
["timestamp","ask_amount","ask_price","bid_price","bid_amount"]
[1644495813147,13.2266,113.52,113.41,17.6313]
[1644495813444,17.056,113.51,113.41,13.2493]
[1644495813643,13.86640046,113.51,113.42,41.85089141]
[1644495813844,4.406,113.5,113.43,0.024]
[1644495814044,17.056,113.5,113.42,41.82689141]
[1644495814244,12.65,113.5,113.42,41.82689141]
[1644495814646,4.406,113.49,113.42,41.82689141]
[1644495814847,12.65,113.5,113.42,41.82689141]
[1644495815046,12.65,113.5,113.42,47.82689141]
[1644495815649,1.62211317,113.49,113.42,47.82689141]
[1644495815846,6.02911317,113.49,113.42,47.82689141]
[1644495816046,4.407,113.49,113.42,47.82689141]
[1644495816447,4.407,113.49,113.42,41.82689141]
[1644495816647,14.88122154,113.49,113.4,4.671e-05]
[1644495816847,4.407,113.48,113.4,4.671e-05]
[1644495817247,12.65,113.49,113.4,4.40704671]
[1644495817447,12.65,113.49,113.4,4.671e-05]
[1644495817648,12.65,113.49,113.41,39.69039814]
[1644495817849,12.65,113.49,113.41,45.69039814]
[1644495817850,4.407,113.48,113.41,45.69039814]
[1644495819051,12.65,113.49,113.41,45.69039814]
[1644495819453,14.88122154,113.49,113.41,45.69039814]
[1644495819870,12.65,113.49,113.41,45.69039814]
[1644495820971,4.407,113.48,113.41,45.69039814]
[1644495822674,4.407,113.48,113.41,39.69039814]
[1644495823176,6.63822154,113.48,113.41,39.69039814]
[1644495823379,6.63822154,113.48,113.4,4.671e-05]
[1644495823576,6.63822154,113.48,113.4,0.02404671]
[1644495823577,54.17022154,113.48,113.4,0.02404671]
[1644495823777,51.939,113.48,113.4,4.671e-05]
[1644495824178,12.65,113.47,113.4,4.671e-05]
[1644495824380,4.407,113.46,113.4,4.671e-05]
[1644495825278,17.057,113.46,113.4,4.671e-05]
[1644495825479,12.65,113.46,113.4,4.671e-05]
[1644495826278,28.11452154,113.46,113.4,4.671e-05]
[1644495826481,72.40642667,113.46,113.4,4.671e-05]
[1644495826678,4.408,113.45,113.4,4.671e-05]
[1644495826883,12.65,113.44,113.4,4.671e-05]
[1644495827483,28.11702154,113.44,113.4,4.671e-05]
[1644495828082,4.408,113.43,113.4,4.671e-05]
[1644495828280,6.06439994,113.42,113.4,4.671e-05]
[1644495829382,3.03219997,113.42,113.4,4.671e-05]
[1644495829582,25.8845,113.45,113.4,4.671e-05]
[1644495829783,4.408,113.44,113.4,4.671e-05]
[1644495829981,17.058,113.45,113.4,4.671e-05]
[1644495830383,12.65,113.45,113.4,4.671e-05]
[1644495831486,11.58,113.46,113.4,4.671e-05]
[1644495831684,7.172,113.46,113.4,4.671e-05]
[1644495832985,7.172,113.46,113.4,13.22664671]
[1644495833388,7.172,113.46,113.4,23.88464671]
[1644495833586,7.172,113.46,113.4,36.53464671]
[1644495833794,7.172,113.46,113.41,46.89686899]
[1644495833987,7.172,113.46,113.42,13.2242]
[1644495834194,7.172,113.46,113.43,42.56258501]
[1644495835687,7.172,113.46,113.43,55.78588501]
[1644495836989,4.407,113.52,113.43,55.78588501]
[1644495837190,25.8742,113.53,113.44,0.024]
[1644495837191,17.056,113.53,113.44,0.024]
[1644495837488,12.65,113.53,113.44,13.2455]
[1644495837689,12.65,113.53,113.45,0.024]
[1644495837889,4.405,113.52,113.45,46.10969837]
[1644495839489,12.65,113.53,113.45,46.10969837]
[1644495839891,12.65,113.53,113.45,59.33089837]
[1644495840091,12.65,113.53,113.45,59.30689837]
[1644495840892,12.65,113.53,113.45,59.33089837]
[1644495841094,17.055,113.56,113.45,59.30689837]
[1644495841298,12.65,113.56,113.47,13.2191]
[1644495841492,4.404,113.55,113.48,46.15798676]
[1644495841697,14.88122154,113.56,113.48,46.15798676]
[1644495842094,12.65,113.56,113.48,46.15798676]
[1644495842493,12.65,113.56,113.48,59.35198676]
[1644495843896,12.65,113.56,113.48,59.37598676]
[1644495844095,12.65,113.56,113.48,59.35198676]
[1644495844595,2.23122154,113.55,113.48,59.35198676]
[1644495844795,17.054,113.57,113.48,59.35198676]
[1644495844998,131.0,113.56,113.45,1.24914655]
[1644495845197,33.09665311,113.55,113.44,4.404]
[1644495845395,158.07,113.54,113.41,1.24914655]
[1644495845596,17.056,113.53,113.41,13.2264]
[1644495845795,19.28722154,113.53,113.41,13.2264]
[1644495845996,40.70726581,113.53,113.42,48.21117044]
[1644495846196,13.2249,113.51,113.42,48.21117044]
[1644495846398,17.056,113.5,113.42,48.21117044]
[1644495846595,12.65,113.5,113.42,48.21117044]
[1644495847596,25.8755,113.5,113.42,61.43607044]
[1644495847797,14.88122154,113.54,113.43,4.406]
[1644495847998,49.70545883,113.56,113.43,4.406]
[1644495847999,12.65,113.55,113.43,4.406]
[1644495848401,12.65,113.55,113.43,4.656]
[1644495848598,12.65,113.55,113.44,42.32990667]
[1644495848803,12.65,113.55,113.46,13.2202]
[1644495848804,13.2216,113.54,113.46,13.2202]
[1644495848999,17.6266,113.54,113.47,35.77221698]
[1644495849602,4.405,113.54,113.47,35.77221698]
[1644495849798,25.8697,113.55,113.47,48.99151698]
[1644495851605,12.65,113.55,113.47,48.99151698]
[1644495851800,12.65,113.55,113.47,49.24151698]
[1644495853401,12.65,113.57,113.47,49.24151698]
[1644495853622,12.65,113.57,113.5,13.2151]
[1644495853821,17.054,113.57,113.5,13.2151]
[1644495854029,12.65,113.57,113.5,13.2151]
[1644495854222,12.65,113.57,113.51,47.65235664]
[1644495854723,12.65,113.57,113.51,60.86675664]
[1644495854922,12.65,113.59,113.51,60.86675664]
[1644495855128,4.402,113.61,113.51,60.86675664]
[1644495855425,12.65,113.64,113.51,61.11675664]
[1644495855626,4.402,113.63,113.52,4.402]
[1644495855923,64.99745883,113.66,113.55,13.2082]
[1644495856124,51.1211,113.66,113.55,13.2082]
[1644495856325,78.95285883,113.67,113.55,13.4582]
[1644495856524,77.7265,113.67,113.55,13.4582]
[1644495856724,77.7265,113.67,113.56,42.63840573]
[1644495856922,90.9329,113.67,113.56,42.63840573]
[1644495857126,92.66412154,113.67,113.58,43.17809616]
[1644495857923,90.4329,113.67,113.58,43.17809616]
[1644495858624,4.401,113.67,113.58,56.38399616]
[1644495858826,74.33955883,113.69,113.59,4.4]
[1644495858827,1.22635883,113.69,113.59,4.4]
[1644495859026,1.22635883,113.7,113.59,4.4]
[1644495859227,4.399,113.71,113.59,4.65]
[1644495859425,4.399,113.71,113.6,39.11949353]
[1644495859628,21.82456948,113.7,113.6,39.11949353]
[1644495859924,2.81873728,113.68,113.56,9.477]
[1644495860125,18.27635883,113.67,113.56,9.477]
[1644495860325,42.8285943,113.67,113.56,9.477]
[1644495860527,14.92859911,113.66,113.56,9.477]
[1644495860725,30.2609,113.65,113.56,9.477]
[1644495860926,32.49212154,113.65,113.57,37.25412102]
[1644495861128,46.19436182,113.65,113.57,37.25412102]
[1644495861529,2.23122154,113.64,113.57,37.25412102]
[1644495862729,4.401,113.63,113.57,37.25412102]
[1644495863330,2.23122154,113.62,113.56,9.477]
[1644495863732,17.051,113.61,113.56,9.477]
[1644495864030,59.23122154,113.6,113.51,0.024]
[1644495864230,71.88122154,113.6,113.49,0.024]
[1644495864430,4.402,113.59,113.47,0.024]
[1644495864633,4.402,113.59,113.49,13.2155]
[1644495864830,2.23122154,113.59,113.5,0.024]
[1644495865030,12.65,113.6,113.5,38.59543484]
[1644495865229,12.65,113.6,113.51,0.024]
[1644495865432,4.402,113.59,113.51,0.024]
[1644495865631,6.63322154,113.59,113.51,0.024]
[1644495865831,19.84972154,113.59,113.51,0.024]
[1644495866631,2.23122154,113.58,113.5,38.59543484]
[1644495866834,4.402,113.57,113.5,38.59543484]
[1644495867638,4.402,113.57,113.5,38.57143484]
[1644495867835,4.402,113.57,113.5,38.59543484]
[1644495869436,2.23122154,113.56,113.48,0.024]
[1644495869636,6.63522154,113.56,113.46,4.426]
[1644495869839,17.21522154,113.56,113.48,0.024]
[1644495870037,2.23122154,113.55,113.47,0.024]
[1644495870238,4.404,113.54,113.47,0.024]
[1644495870537,13.2212,113.54,113.47,41.97056461]
[1644495870738,14.985,113.56,113.47,41.99456461]
[1644495870935,10.58,113.56,113.48,0.024]
[1644495871337,23.1038,113.57,113.48,0.024]
[1644495871639,13.2193,113.56,113.48,13.2415]
[1644495871837,23.1038,113.57,113.49,44.86957437]
[1644495872041,23.1038,113.57,113.49,44.84557437]
[1644495872239,23.1038,113.57,113.49,44.86957437]
[1644495872442,23.1038,113.57,113.49,44.84557437]
[1644495872641,22.5096,113.58,113.49,44.84557437]
[1644495872940,100.5349,113.6,113.5,13.2391]
[1644495873241,4.404,113.6,113.5,13.4891]
[1644495873438,5.62835883,113.63,113.51,40.71427907]
[1644495873639,5.62835883,113.63,113.51,64.72457907]
[1644495873640,4.402,113.63,113.51,64.72457907]
[1644495873840,4.402,113.63,113.51,75.55457907]
[1644495874341,18.83715883,113.65,113.53,13.2114]
[1644495874541,18.83715883,113.65,113.54,4.401]
[1644495874742,17.6108,113.65,113.54,52.2234664]
[1644495874944,4.402,113.65,113.54,52.2234664]
[1644495875345,4.402,113.65,113.55,10.58]
[1644495875543,2.23122154,113.64,113.56,13.2085]
[1644495875743,4.401,113.63,113.57,35.64874157]
[1644495876144,6.63222154,113.63,113.57,35.64874157]
[1644495876344,2.23122154,113.63,113.57,35.64874157]
[1644495876543,17.6135,113.62,113.57,35.64874157]
[1644495876743,13.2125,113.62,113.57,35.64874157]
[1644495877343,13.2125,113.62,113.53,13.2121]
[1644495877547,6.63322154,113.61,113.53,13.2121]
[1644495877743,19.84642154,113.61,113.53,13.2121]
[1644495877943,2.23122154,113.6,113.49,0.024]
[1644495878148,14.982,113.59,113.49,0.024]
[1644495878344,46.7416,113.58,113.47,0.024]
[1644495878544,4.404,113.57,113.46,46.2568239]
[1644495878747,6.63522154,113.57,113.48,0.024]
[1644495878944,6.63522154,113.57,113.47,0.024]
[1644495879144,2.23122154,113.56,113.47,0.024]
[1644495879343,4.404,113.55,113.47,0.024]
[1644495879744,13.2185,113.56,113.47,13.2425]
[1644495879944,13.2185,113.56,113.48,0.024]
[1644495880148,15.44972154,113.56,113.48,0.024]
[1644495881446,15.44972154,113.56,113.47,0.024]
[1644495881844,15.44972154,113.56,113.48,13.2182]
[1644495882045,4.404,113.55,113.49,38.86525278]
[1644495882445,17.6238,113.55,113.46,0.024]
[1644495882644,2.23122154,113.54,113.46,0.024]
[1644495882848,4.405,113.53,113.46,0.024]
[1644495883045,2.23122154,113.54,113.46,0.024]
[1644495883246,6.63622154,113.53,113.46,0.024]
[1644495883645,17.6273,113.53,113.46,0.024]
[1644495883845,17.6273,113.53,113.45,22.6846]
[1644495884145,13.2223,113.53,113.45,22.6846]
[1644495884345,13.2223,113.53,113.46,43.1731166]
[1644495884547,13.2223,113.53,113.46,43.1971166]
[1644495886649,13.2223,113.53,113.46,56.4179166]
[1644495886849,46.7549,113.55,113.46,56.4179166]
[1644495887048,36.1749,113.55,113.47,0.024]
[1644495888154,17.6226,113.57,113.47,13.2429]
[1644495888351,13.2176,113.57,113.48,38.60523616]
[1644495888752,27.9617,113.58,113.48,38.85523616]
[1644495888955,23.5577,113.58,113.49,4.404]
[1644495889153,29.0938,113.6,113.49,4.404]
[1644495889352,29.0938,113.6,113.51,34.31702692]
[1644495889353,13.2152,113.59,113.51,34.31702692]
[1644495889553,24.6898,113.6,113.51,34.31702692]
[1644495890953,4.402,113.59,113.51,34.31702692]
[1644495891356,17.6166,113.59,113.51,47.53212692]
[1644495893358,13.2146,113.59,113.51,47.53212692]
[1644495894460,42.305,113.6,113.51,47.53212692]
[1644495895076,24.6898,113.6,113.51,47.53212692]
[1644495895278,4.402,113.61,113.51,58.36212692]
[1644495895477,23.86025883,113.63,113.51,58.36212692]
[1644495895478,22.6339,113.63,113.51,58.36212692]
[1644495895679,22.6339,113.63,113.51,82.79392692]
[1644495895876,22.6339,113.63,113.51,90.04307347]
[1644495896077,22.6339,113.63,113.51,88.79392692]
[1644495896277,22.6339,113.63,113.51,90.04307347]
[1644495896478,28.19945883,113.65,113.51,90.04307347]
[1644495896679,23.79745883,113.65,113.52,87.84]
[1644495896880,22.5711,113.65,113.55,13.206]
[1644495897077,22.5711,113.65,113.56,4.401]
[1644495897679,14.43235883,113.67,113.57,46.03269892]
[1644495897878,13.206,113.67,113.57,46.03269892]
[1644495898880,13.206,113.67,113.58,13.2056]
[1644495899880,15.43722154,113.67,113.59,47.9118748]
[1644495900081,4.4,113.66,113.59,47.9118748]
[1644495900582,15.43722154,113.67,113.59,47.9118748]
[1644495901683,15.43722154,113.67,113.59,34.7060748]
[1644495901886,13.2087,113.64,113.59,34.7060748]
[1644495902386,4.4,113.66,113.59,34.7060748]
[1644495902584,1.22635883,113.67,113.59,34.7060748]
[1644495902782,53.43875883,113.68,113.59,34.7060748]
[1644495902982,13.2059,113.66,113.59,34.7060748]
[1644495906686,4.4,113.65,113.59,34.7060748]
[1644495906888,17.6071,113.65,113.59,34.7060748]
[1644495907088,2.23122154,113.64,113.59,34.7060748]
[1644495907287,6.63122154,113.64,113.59,34.7060748]
[1644495907886,6.63122154,113.64,113.55,49.3092]
[1644495908087,2.23122154,113.64,113.55,49.3092]
[1644495908286,28.0675,113.65,113.55,49.3092]
[1644495908486,13.2101,113.63,113.55,49.3092]
[1644495908886,2.23122154,113.62,113.55,49.3092]
[1644495909286,4.401,113.61,113.52,47.892]
[1644495909486,13.2118,113.61,113.53,49.20699717]
[1644495911489,13.2104,113.62,113.53,49.20699717]
[1644495911692,13.2104,113.62,113.53,49.45699717]
[1644495912492,50.6595,113.63,113.53,49.45699717]
[1644495912691,46.2575,113.63,113.53,53.85899717]
[1644495914092,46.2575,113.63,113.53,53.60899717]
[1644495914691,13.2079,113.64,113.53,53.60899717]
[1644495914893,28.85865883,113.66,113.54,10.58]
[1644495915093,4.401,113.66,113.54,34.8599]
[1644495915294,4.401,113.66,113.57,13.2063]
[1644495915596,54.46765883,113.67,113.58,44.71671644]
[1644495916799,13.2068,113.65,113.58,44.71671644]
[1644495916996,17.6068,113.65,113.58,44.71671644]
[1644495917198,19.83802154,113.65,113.58,44.71671644]
[1644495917595,21.06438037,113.65,113.58,44.71671644]
[1644495918395,18.83315883,113.65,113.58,44.71671644]
[1644495918596,13.2068,113.65,113.58,44.71671644]
[1644495918796,17.6068,113.65,113.58,44.71671644]
[1644495919401,18.83315883,113.65,113.58,44.71671644]
[1644495919598,14.43315883,113.65,113.58,44.71671644]
[1644495919799,14.43315883,113.65,113.58,57.92311644]
[1644495920000,13.2068,113.65,113.58,57.92311644]
[1644495921702,14.43315883,113.65,113.58,57.92311644]
[1644495922505,14.43185883,113.66,113.58,57.92311644]
[1644495922900,48.8413,113.67,113.58,58.17311644]
[1644495922901,1.22635883,113.65,113.58,58.17311644]
[1644495923103,48.8413,113.67,113.58,58.17311644]
[1644495923104,1.22635883,113.66,113.58,58.17311644]
[1644495924801,1.22635883,113.66,113.58,57.92311644]
[1644495925003,2.23122154,113.65,113.58,57.92311644]
[1644495925204,7.85758037,113.65,113.58,44.71671644]
[1644495925402,3.45758037,113.65,113.58,44.71671644]
[1644495926203,14.43415883,113.64,113.58,44.71671644]
[1644495926406,18.83515883,113.64,113.58,44.71671644]
[1644495927405,18.83515883,113.64,113.56,13.2087]
[1644495927606,3.45758037,113.63,113.54,10.58]
[1644495927807,13.2136,113.61,113.51,48.7724]
[1644495928006,5.62835883,113.6,113.51,48.7724]
[1644495928208,1.22635883,113.6,113.51,48.7724]
[1644495928407,1.22635883,113.6,113.52,45.06351528]
[1644495928628,4.402,113.59,113.52,45.06351528]
[1644495928807,6.63322154,113.6,113.52,45.06351528]
[1644495929007,7.85958037,113.6,113.52,45.06351528]
[1644495929207,1.22635883,113.6,113.52,45.06351528]
[1644495929408,22.6568,113.61,113.52,45.31351528]
[1644495929609,27.0588,113.61,113.52,45.31351528]
[1644495929806,22.6568,113.61,113.52,49.46551528]
[1644495930009,23.6186,113.62,113.52,49.46551528]
[1644495930207,23.6186,113.62,113.53,10.58]
[1644495930407,1.22635883,113.64,113.52,158.4567428]
[1644495930707,1.22635883,113.64,113.53,37.0801]
[1644495930909,1.22635883,113.64,113.54,36.97220497]
[1644495931110,53.43195883,113.65,113.55,12.69]
[1644495931313,49.03095883,113.65,113.56,37.09380835]
[1644495931510,1.22635883,113.64,113.56,37.09380835]
[1644495931709,13.2077,113.64,113.56,50.30130835]
[1644495931909,14.43405883,113.64,113.56,50.30130835]
[1644495932512,14.43405883,113.64,113.56,37.09380835]
[1644495932513,16.14758037,113.63,113.56,37.09380835]
[1644495932711,20.54858037,113.63,113.52,4.402]
[1644495932912,13.2148,113.61,113.52,4.402]
[1644495933112,31.53315883,113.61,113.52,4.402]
[1644495933314,2.23122154,113.6,113.52,4.402]
[1644495933613,18.31835883,113.61,113.5,36.21215981]
[1644495933814,13.91635883,113.61,113.51,4.402]
[1644495934014,18.31835883,113.61,113.52,37.1822155]
[1644495934415,5.62835883,113.61,113.52,37.1822155]
[1644495934814,13.2131,113.6,113.52,50.3960155]
[1644495935615,13.2131,113.6,113.49,4.402]
[1644495935815,7.85958037,113.59,113.49,4.402]
[1644495936018,13.2182,113.56,113.49,4.402]
[1644495936423,1.22635883,113.59,113.49,4.402]
[1644495936623,4.402,113.58,113.5,38.22172055]
[1644495936825,6.63322154,113.58,113.5,38.22172055]
[1644495937024,2.23122154,113.57,113.5,38.22172055]
[1644495937226,15.44752154,113.57,113.5,38.22172055]
[1644495938325,4.402,113.56,113.5,38.22172055]
[1644495938523,13.2177,113.56,113.5,38.22172055]
[1644495938724,59.16395883,113.6,113.5,38.22172055]
[1644495938923,57.9376,113.6,113.5,38.22172055]
[1644495939728,13.2161,113.58,113.5,51.43722055]
[1644495943228,13.2138,113.59,113.5,51.43722055]
[1644495944750,14.80052604,113.59,113.5,51.43722055]
[1644495945047,13.217,113.57,113.5,38.22172055]
[1644495948750,13.217,113.57,113.46,72.1488]
[1644495948751,24.12074821,113.57,113.46,72.1488]
[1644495948951,24.12074821,113.57,113.46,23.6914]
[1644495949151,24.12074821,113.57,113.46,23.6674]
[1644495949552,24.12074821,113.57,113.46,23.6914]
[1644495949751,24.12074821,113.57,113.47,34.49290346]
[1644495949956,30.28874821,113.57,113.47,34.49290346]
[1644495950853,28.05752667,113.57,113.47,34.49290346]
[1644495951352,23.787,113.57,113.47,34.49290346]
[1644495952154,4.404,113.56,113.47,34.49290346]
[1644495952355,13.2182,113.56,113.47,52.11600346]
[1644495953553,13.2182,113.56,113.47,38.89690346]
[1644495953753,17.6222,113.56,113.47,34.49290346]
[1644495953953,19.85342154,113.56,113.47,34.49290346]
[1644495954152,21.02769508,113.55,113.47,34.49290346]
[1644495954353,13.222,113.53,113.47,34.49290346]
[1644495956153,13.2195,113.54,113.47,34.49290346]
[1644495956654,15.78617618,113.54,113.47,34.49290346]
[1644495956853,15.78617618,113.54,113.44,0.024]
[1644495957053,13.2265,113.51,113.44,0.024]
[1644495957253,4.406,113.5,113.44,0.024]
[1644495957453,12.80122154,113.51,113.43,4.405]
[1644495957653,4.406,113.5,113.43,4.405]
[1644495957856,4.406,113.5,113.4,4.671e-05]
[1644495957857,4.406,113.5,113.41,0.024]
[1644495958053,72.1669,113.5,113.41,0.024]
[1644495959153,67.7609,113.5,113.41,0.024]
[1644495959354,29.94679072,113.49,113.41,0.024]
[1644495959559,4.407,113.48,113.4,4.671e-05]
[1644495959754,54.6849,113.47,113.4,4.671e-05]
[1644495959954,4.407,113.46,113.4,4.671e-05]
[1644495960256,10.57,113.45,113.4,4.671e-05]
[1644495960561,37.0894,113.44,113.4,4.671e-05]
[1644495960755,47.6594,113.44,113.4,4.671e-05]
[1644495960956,37.0894,113.44,113.4,4.671e-05]
[1644495962355,13.2309,113.46,113.4,4.671e-05]
[1644495962556,24.1387,113.47,113.4,4.671e-05]
[1644495963160,24.0878,113.48,113.4,4.671e-05]
[1644495963757,24.0878,113.48,113.41,43.45046609]
[1644495964358,76.9405,113.49,113.41,43.45046609]
[1644495964956,4.407,113.51,113.41,43.45046609]
[1644495965158,37.9887,113.51,113.41,61.08186609]
[1644495965358,24.7637,113.51,113.41,61.08186609]
[1644495965961,38.62058712,113.54,113.41,61.08186609]
[1644495966161,13.2203,113.55,113.42,10.57]
[1644495966361,23.5922,113.56,113.45,13.219]
[1644495966562,23.5922,113.56,113.45,23.789]
[1644495966965,23.5922,113.56,113.46,46.99451471]
[1644495967162,23.5922,113.56,113.48,43.2394331]
[1644495967363,65.5209,113.57,113.48,43.2394331]
[1644495967562,61.1159,113.57,113.48,56.4565331]
[1644495968164,4.404,113.58,113.48,56.4565331]
[1644495968370,4.404,113.6,113.49,4.404]
[1644495968563,11.79635883,113.61,113.52,13.2124]
[1644495968564,5.62835883,113.61,113.52,13.2124]
[1644495968765,1.22635883,113.61,113.53,47.71354176]
[1644495968963,5.62835883,113.62,113.53,47.71354176]
[1644495969364,53.45015883,113.63,113.53,47.71354176]
[1644495969765,66.66085883,113.63,113.53,60.92464176]
[1644495970666,66.68485883,113.63,113.53,60.92464176]
[1644495971066,62.28285883,113.63,113.53,60.92464176]
[1644495972068,4.402,113.62,113.53,60.92464176]
[1644495973372,61.0565,113.63,113.53,60.92464176]
[1644495973970,47.8458,113.63,113.53,60.92464176]
[1644495974370,47.8458,113.63,113.53,71.49464176]
[1644495974570,47.8458,113.63,113.54,4.402]
[1644495974770,52.2468,113.63,113.56,13.2074]
[1644495974969,52.2228,113.63,113.56,13.2074]
[1644495975169,52.2228,113.63,113.53,58.28354176]
[1644495975370,47.8458,113.63,113.57,42.52536139]
[1644495975571,13.2336,113.64,113.57,42.52536139]
[1644495975769,0.024,113.64,113.57,42.52536139]
[1644495975973,1.25035883,113.65,113.57,42.52536139]
[1644495976171,0.024,113.64,113.57,42.52536139]
[1644495976371,1.22635883,113.65,113.57,42.52536139]
[1644495976572,4.401,113.64,113.57,42.52536139]
[1644495976773,4.425,113.64,113.57,42.52536139]
[1644495976975,4.425,113.65,113.57,42.52536139]
[1644495977974,0.024,113.65,113.57,42.52536139]
[1644495978577,0.024,113.67,113.58,10.57]
[1644495978774,0.024,113.68,113.58,35.09808728]
[1644495979175,0.024,113.68,113.6,13.2019]
[1644495979374,0.024,113.7,113.62,42.08518019]
[1644495979574,0.024,113.71,113.62,42.08518019]
[1644495979773,0.024,113.71,113.62,46.48318019]
[1644495980176,2.25522154,113.71,113.62,46.48318019]
[1644495980376,4.398,113.7,113.62,42.08518019]
[1644495980575,16.68458037,113.71,113.62,42.08518019]
[1644495980775,15.45822154,113.71,113.62,42.08518019]
[1644495981476,17.20228589,113.7,113.62,42.08518019]
[1644495981677,4.399,113.69,113.6,4.398]
[1644495981878,7.88058037,113.69,113.56,10.57]
[1644495982077,48.3662,113.68,113.56,10.57]
[1644495982277,0.024,113.67,113.56,10.57]
[1644495982477,0.024,113.67,113.57,4.4]
[1644495982676,0.024,113.67,113.57,49.65698533]
[1644495982877,4.4,113.66,113.57,62.86278533]
[1644495983077,4.424,113.66,113.57,49.65698533]
[1644495983278,6.65522154,113.66,113.57,49.65698533]
[1644495983478,55.58029933,113.68,113.57,45.25698533]
[1644495983479,0.024,113.67,113.57,45.25698533]
[1644495983682,0.024,113.67,113.57,84.37398533]
[1644495983879,0.024,113.67,113.57,79.97398533]
[1644495984282,0.024,113.67,113.58,1.93299108]
[1644495984480,0.024,113.67,113.59,62.34555964]
[1644495984681,2.07293571,113.7,113.59,57.94555964]
[1644495984904,0.024,113.69,113.6,4.399]
[1644495985104,4.423,113.69,113.61,41.4724749]
[1644495985403,4.399,113.69,113.61,41.4724749]
[1644495985605,4.423,113.69,113.61,41.4724749]
[1644495985806,4.423,113.7,113.61,41.4724749]
[1644495986209,6.65422154,113.7,113.61,41.4724749]
[1644495986407,4.423,113.7,113.61,41.4724749]
[1644495986808,13.2064,113.68,113.61,41.4724749]
[1644495987508,0.024,113.69,113.61,41.4724749]
[1644495987709,0.024,113.7,113.61,41.4724749]
[1644495987910,0.024,113.69,113.61,41.4724749]
[1644495988109,0.024,113.7,113.61,41.4724749]
[1644495988310,13.2279,113.7,113.61,41.4724749]
[1644495990912,0.024,113.7,113.61,41.4724749]
[1644495992814,6.63022154,113.69,113.61,41.4724749]
[1644495993014,6.65422154,113.69,113.61,41.4724749]
[1644495993213,0.024,113.69,113.61,41.4724749]
[1644495993413,4.423,113.7,113.61,41.4724749]
[1644495993613,0.024,113.69,113.61,41.4724749]
[1644495993814,0.024,113.7,113.61,41.4724749]
[1644495994019,1.25035883,113.7,113.61,41.4724749]
[1644495994613,8.38773723,113.7,113.61,41.4724749]
[1644495994814,2.23122154,113.69,113.61,41.4724749]
[1644495995016,7.88058037,113.69,113.61,41.4724749]
[1644495995313,5.64935883,113.69,113.61,41.4724749]
[1644495995514,5.62535883,113.69,113.61,41.4724749]
[1644495995914,1.22635883,113.68,113.61,41.4724749]
[1644495997217,1.22635883,113.68,113.58,65.2733]
[1644495997418,5.65035883,113.68,113.58,65.2733]
[1644495997619,1.25035883,113.67,113.58,65.2733]
[1644495998018,14.45635883,113.67,113.58,65.2733]
[1644495998220,18.77141379,113.66,113.58,106.08615317]
[1644495998418,4.4,113.65,113.58,101.68715317]
[1644495998617,18.79541379,113.66,113.58,40.81285317]
[1644495998819,1.22635883,113.65,113.58,40.81285317]
[1644495999021,18.83485883,113.65,113.58,40.81285317]
[1644495999919,6.87133026,113.64,113.58,40.81285317]
[1644496000220,20.08073026,113.64,113.56,13.2077]
[1644496000422,4.401,113.63,113.54,35.9825]
[1644496000620,5.62735883,113.63,113.54,35.9825]
[1644496001224,28.90745883,113.63,113.55,41.61699843]
[1644496001420,24.50645883,113.63,113.55,41.61699843]
[1644496001819,37.71765883,113.63,113.55,41.61699843]
[1644496002521,42.11865883,113.63,113.55,41.61699843]
[1644496002922,37.71765883,113.63,113.55,41.61699843]
[1644496004227,1.22635883,113.62,113.55,41.61699843]
[1644496004423,37.71765883,113.63,113.55,41.61699843]
[1644496006123,42.11865883,113.63,113.55,41.61699843]
[1644496006323,42.11865883,113.63,113.55,54.82689843]
[1644496006524,40.8923,113.63,113.55,54.82689843]
[1644496007123,36.4913,113.63,113.55,54.82689843]
[1644496007924,38.20001125,113.63,113.55,54.82689843]
[1644496008127,39.42637008,113.63,113.55,54.82689843]
[1644496008324,37.71765883,113.63,113.55,54.82689843]
[1644496009924,36.4913,113.63,113.55,54.82689843]